bitfinex/quotes_BTCUSD_20241010
["timestamp","ask_amount","ask_price","bid_price","bid_amount"]
[1728589277616,0.18260266,59668.0,59667.0,0.169226]
[1728589277818,0.18260266,59668.0,59664.0,0.335209]
[1728589278027,0.18260266,59668.0,59666.0,0.167599]
[1728589278028,0.1693093,59667.0,59666.0,0.167599]
[1728589278227,0.17279018,59667.0,59666.0,0.167599]
[1728589278736,0.17279018,59667.0,59663.0,0.335213]
[1728589278943,0.17279018,59667.0,59665.0,0.167601]
[1728589279812,0.17679018,59667.0,59665.0,0.167601]
[1728589280032,0.17679018,59667.0,59664.0,0.167603]
[1728589280272,0.17679018,59667.0,59665.0,0.1676]
[1728589280489,0.17679018,59667.0,59666.0,0.167599]
[1728589281135,0.17279018,59667.0,59666.0,0.167599]
[1728589281343,0.17579018,59667.0,59665.0,0.1676]
[1728589281564,0.17879018,59667.0,59664.0,0.335208]
[1728589281782,0.17279018,59667.0,59666.0,0.167599]
[1728589281978,0.17679018,59667.0,59666.0,0.167599]
[1728589282186,0.18079018,59667.0,59666.0,0.167599]
[1728589282430,0.17279018,59667.0,59666.0,0.167599]
[1728589282643,0.17579018,59667.0,59666.0,0.167599]
[1728589282896,0.17779018,59667.0,59666.0,0.167599]
[1728589283140,0.17779018,59667.0,59664.0,0.50281]
[1728589283419,0.17779018,59667.0,59665.0,0.167601]
[1728589283862,0.17479018,59667.0,59664.0,0.167603]
[1728589284105,0.17479018,59667.0,59665.0,0.167601]
[1728589284326,0.17879018,59667.0,59666.0,0.167599]
[1728589284545,0.17279018,59667.0,59666.0,0.167599]
[1728589284783,0.17579018,59667.0,59666.0,0.167599]
[1728589285016,0.17979018,59667.0,59666.0,0.167599]
[1728589285709,0.17679018,59667.0,59666.0,0.167599]
[1728589285939,0.18079018,59667.0,59666.0,0.167599]
[1728589287546,0.18079018,59667.0,59666.0,0.165599]
[1728589289922,0.18079018,59667.0,59666.0,0.167229]
[1728589295668,0.18079018,59667.0,59666.0,0.00163]
[1728589296585,0.18079018,59667.0,59666.0,0.169229]
[1728589297665,0.17679018,59667.0,59666.0,0.169229]
[1728589297885,0.17579018,59667.0,59666.0,0.169229]
[1728589298135,0.17879018,59667.0,59666.0,0.169229]
[1728589298407,0.17279018,59667.0,59666.0,0.169229]
[1728589298631,0.17579018,59667.0,59666.0,0.169229]
[1728589299818,0.17879018,59667.0,59666.0,0.169229]
[1728589302041,0.00948088,59667.0,59666.0,0.169229]
[1728589302244,0.00948088,59667.0,59666.0,0.21904448]
[1728589302454,0.006,59667.0,59666.0,0.169229]
[1728589302915,0.003,59667.0,59666.0,0.169229]
[1728589303122,0.003,59667.0,59666.0,0.27689089]
[1728589303123,0.004,59667.0,59666.0,0.27689089]
[1728589303577,0.004,59667.0,59666.0,0.177229]
[1728589303793,0.003,59667.0,59666.0,0.2439896]
[1728589303996,0.000815,59668.0,59667.0,0.167596]
[1728589304429,0.000815,59668.0,59667.0,0.24238871]
[1728589304848,0.000815,59668.0,59667.0,0.21745886]
[1728589305322,0.000815,59668.0,59667.0,0.167596]
[1728589305541,0.000815,59668.0,59667.0,0.22146061]
[1728589306216,0.000815,59668.0,59667.0,0.22546061]
[1728589307321,0.000815,59668.0,59667.0,0.175596]
[1728589307568,0.000815,59668.0,59667.0,0.25039403]
[1728589307769,0.000815,59668.0,59667.0,0.175596]
[1728589308200,0.000815,59668.0,59667.0,0.22544779]
[1728589308447,0.000815,59668.0,59667.0,0.175596]
[1728589309109,0.000815,59668.0,59667.0,0.25039403]
[1728589309330,0.000815,59668.0,59667.0,0.175596]
[1728589319257,0.246393,59679.0,59674.0,0.167574]
[1728589319465,0.25231923,59676.0,59673.0,0.335156]
[1728589319676,0.00306569,59678.0,59675.0,0.167574]
[1728589319887,0.246393,59679.0,59675.0,0.167574]
[1728589320370,0.167566,59678.0,59674.0,0.167575]
[1728589320804,0.08183,59679.0,59674.0,0.167575]
[1728589321028,0.249395,59679.0,59674.0,0.167575]
[1728589321306,0.249395,59679.0,59668.0,0.335187]
[1728589321307,0.15060911,59676.0,59668.0,0.335187]
[1728589321535,0.12760911,59671.0,59662.0,0.25231923]
[1728589321756,0.12760911,59671.0,59664.0,0.167604]
[1728589321757,0.023,59668.0,59664.0,0.167604]
[1728589322187,0.190596,59668.0,59662.0,0.58753923]
[1728589322468,0.190596,59668.0,59664.0,0.167604]
[1728589322649,0.023,59668.0,59666.0,0.00663]
[1728589323117,0.023,59668.0,59666.0,0.00163]
[1728589323350,0.190594,59668.0,59666.0,0.00163]
[1728589323580,0.190594,59668.0,59666.0,0.00663]
[1728589324437,0.00302573,59667.0,59666.0,0.01163]
[1728589324701,0.36293103,59667.0,59666.0,0.00663]
[1728589324963,0.90064831,59667.0,59666.0,0.00663]
[1728589325185,0.90064831,59667.0,59666.0,0.00163]
[1728589325460,0.37244045,59660.0,59659.0,0.00163]
[1728589325687,0.54174975,59660.0,59659.0,0.00163]
[1728589325931,0.6703646,59660.0,59659.0,0.00163]
[1728589326171,0.54275549,59660.0,59659.0,0.00163]
[1728589327059,0.95175549,59660.0,59659.0,0.00263]
[1728589327243,1.12419819,59660.0,59659.0,0.00363]
[1728589327482,0.95374994,59660.0,59659.0,0.00263]
[1728589327700,0.95674994,59660.0,59659.0,0.00363]
[1728589328392,0.94575549,59660.0,59659.0,0.00263]
[1728589328603,0.95375549,59660.0,59659.0,0.00363]
[1728589328846,1.14783154,59660.0,59659.0,0.00363]
[1728589329060,1.14982599,59660.0,59659.0,0.00363]
[1728589329303,1.2774351,59660.0,59659.0,0.00363]
[1728589329553,1.14982599,59660.0,59659.0,0.00363]
[1728589330020,1.27544065,59660.0,59659.0,0.00363]
[1728589330249,1.2774351,59660.0,59659.0,0.00363]
[1728589330468,1.3774351,59660.0,59659.0,0.00363]
[1728589330693,1.24783154,59660.0,59659.0,0.00363]
[1728589330938,1.37544065,59660.0,59659.0,0.00363]
[1728589331429,1.20599795,59660.0,59659.0,0.00363]
[1728589332661,1.07838884,59660.0,59659.0,0.00363]
[1728589333644,1.05375549,59660.0,59659.0,0.00363]
[1728589335163,0.95375549,59660.0,59659.0,0.00363]
[1728589335375,0.9507553,59660.0,59659.0,0.00363]
[1728589336007,0.5507553,59660.0,59659.0,0.00363]
[1728589336934,0.9507553,59660.0,59659.0,0.00363]
[1728589337384,1.120198,59660.0,59659.0,0.00363]
[1728589338725,1.12219245,59660.0,59659.0,0.00363]
[1728589340839,0.95274975,59660.0,59659.0,0.00363]
[1728589347954,0.9507553,59660.0,59659.0,0.00363]
[1728589349963,0.5507553,59660.0,59659.0,0.00363]
[1728589352857,0.9507553,59660.0,59659.0,0.00363]
[1728589357955,1.07836441,59660.0,59659.0,0.00363]
[1728589359042,1.08035886,59660.0,59659.0,0.00363]
[1728589359510,1.07836441,59660.0,59659.0,0.00363]
[1728589359957,1.24780711,59660.0,59659.0,0.00363]
[1728589361765,0.02463,59653.0,59652.0,0.24922017]
[1728589361974,0.1939393,59653.0,59652.0,0.24922017]
[1728589362197,0.02463,59652.0,59651.0,0.167641]
[1728589362423,0.1939393,59652.0,59651.0,0.167641]
[1728589363556,0.1979393,59652.0,59651.0,0.167641]
[1728589364258,0.2019393,59652.0,59651.0,0.167641]
[1728589365653,0.1789393,59652.0,59651.0,0.167641]
[1728589365907,0.008,59652.0,59651.0,0.60545922]
[1728589366124,0.008,59652.0,59651.0,0.47785011]
[1728589366815,0.25231923,59665.0,59664.0,0.167605]
[1728589367026,0.42162853,59665.0,59664.0,0.167605]
[1728589367267,0.1923093,59665.0,59664.0,0.167605]
[1728589368154,0.1953093,59665.0,59664.0,0.167605]
[1728589368606,0.1973093,59665.0,59664.0,0.167605]
[1728589371496,0.1973093,59665.0,59660.0,0.0779]
[1728589371793,0.00163,59662.0,59655.0,0.0761]
[1728589372007,0.1923093,59661.0,59660.0,0.41993423]
[1728589372215,0.1923093,59661.0,59660.0,0.167615]
[1728589372663,0.1923093,59661.0,59652.0,0.00163]
[1728589372664,0.29358473,59661.0,59652.0,0.00163]
[1728589372870,0.44351875,59661.0,59660.0,0.002]
[1728589373102,0.44351875,59661.0,59654.0,0.25231923]
[1728589373103,0.27590375,59661.0,59654.0,0.25231923]
[1728589373318,0.023,59658.0,59654.0,0.25231923]
[1728589373532,0.023,59656.0,59654.0,0.25241923]
[1728589373757,0.1923093,59655.0,59654.0,0.167733]
[1728589373980,0.1923093,59655.0,59654.0,0.0001]
[1728589374185,0.1923093,59655.0,59654.0,0.167733]
[1728589376177,0.1963093,59655.0,59654.0,0.167733]
[1728589376420,0.1993093,59655.0,59654.0,0.167733]
[1728589377328,0.1763093,59655.0,59654.0,0.167733]
[1728589378011,0.1763093,59655.0,59654.0,0.244033]
[1728589378903,0.1723093,59655.0,59654.0,0.244033]
[1728589379128,0.1693093,59655.0,59654.0,0.244033]
[1728589380694,0.25313423,59665.0,59654.0,0.244033]
[1728589380695,0.000815,59665.0,59654.0,0.32871923]
[1728589380933,0.000815,59665.0,59664.0,0.340905]
[1728589382471,0.001815,59665.0,59664.0,0.340905]
[1728589382911,0.000815,59665.0,59664.0,0.243005]
[1728589383345,0.001815,59665.0,59664.0,0.243005]
[1728589384004,0.002815,59665.0,59664.0,0.243005]
[1728589385107,0.001815,59665.0,59664.0,0.243005]
[1728589385323,0.000815,59665.0,59664.0,0.243005]
[1728589390134,0.000815,59665.0,59664.0,0.245005]
[1728589391720,0.000815,59665.0,59664.0,0.247005]
[1728589396524,0.000815,59665.0,59664.0,0.44150925]
[1728589397417,0.000815,59665.0,59664.0,0.44487925]
[1728589399005,0.000815,59665.0,59664.0,0.53997925]
[1728589400375,0.000815,59665.0,59664.0,0.58977048]
[1728589400596,0.000815,59665.0,59664.0,0.53997925]
[1728589400824,0.000815,59665.0,59664.0,0.88427473]
[1728589401082,0.000815,59678.0,59664.0,0.88427473]
[1728589401083,0.000815,59678.0,59677.0,0.341468]
[1728589401298,0.000815,59678.0,59677.0,0.66365265]
[1728589401514,0.000815,59678.0,59677.0,0.73872694]
[1728589401728,0.000815,59678.0,59677.0,0.76357311]
[1728589402469,0.000815,59678.0,59677.0,0.73868128]
[1728589402672,0.000815,59678.0,59677.0,0.75268128]
[1728589402887,0.000815,59678.0,59677.0,0.72785796]
[1728589403511,0.001815,59678.0,59677.0,0.74085796]
[1728589403984,0.000815,59678.0,59677.0,0.71385796]
[1728589404227,0.000815,59678.0,59677.0,0.65234225]
[1728589404463,0.000815,59678.0,59677.0,0.63934225]
[1728589404663,0.001815,59678.0,59677.0,0.65334225]
[1728589404924,0.001815,59678.0,59677.0,0.66734225]
[1728589405170,0.000815,59678.0,59677.0,0.70299033]
[1728589405401,0.001815,59678.0,59677.0,0.71699033]
[1728589405612,0.001815,59678.0,59677.0,0.71697957]
[1728589406371,0.001815,59678.0,59677.0,0.71897957]
[1728589406834,0.001815,59678.0,59677.0,0.52247532]
[1728589407068,0.001815,59678.0,59677.0,0.71697957]
[1728589407773,0.000815,59678.0,59677.0,0.65434225]
[1728589408015,0.001815,59678.0,59677.0,0.75451987]
[1728589408256,0.001815,59678.0,59677.0,0.65534225]
[1728589408487,0.001815,59678.0,59677.0,0.66934225]
[1728589408736,0.001815,59678.0,59677.0,0.65534225]
[1728589409444,0.001815,59678.0,59677.0,0.83865155]
[1728589409694,0.000815,59678.0,59677.0,0.82465155]
[1728589409898,0.001815,59678.0,59677.0,0.83865155]
[1728589410373,0.000815,59678.0,59677.0,0.94859884]
[1728589410591,0.001815,59678.0,59677.0,0.94859884]
[1728589411065,0.001815,59678.0,59677.0,0.96259884]
[1728589411341,0.001815,59678.0,59677.0,0.94859884]
[1728589411581,0.001815,59678.0,59677.0,0.96059884]
[1728589411810,0.001815,59678.0,59677.0,0.76609459]
[1728589412054,0.001815,59678.0,59677.0,1.02763584]
[1728589412301,0.001815,59678.0,59677.0,1.0028419]
[1728589412768,0.000815,59678.0,59677.0,0.9888419]
[1728589412992,0.000815,59678.0,59677.0,0.98881621]
[1728589413231,0.001815,59678.0,59677.0,0.90368855]
[1728589413717,0.001815,59678.0,59677.0,0.88968855]
[1728589413952,0.001815,59678.0,59677.0,0.90368855]
[1728589414428,0.001815,59678.0,59677.0,0.97802697]
[1728589414884,0.001815,59678.0,59677.0,0.97802771]
[1728589415820,0.001815,59678.0,59677.0,0.98002771]
[1728589416301,0.001815,59678.0,59677.0,0.95324727]
[1728589417879,0.001815,59678.0,59677.0,0.95324495]
[1728589418105,0.001815,59678.0,59677.0,0.90368855]
[1728589418579,0.001815,59678.0,59677.0,1.00279207]
[1728589418821,0.001815,59678.0,59677.0,1.00479207]
[1728589419290,0.001815,59678.0,59677.0,1.00479338]
[1728589419756,0.001815,59678.0,59677.0,0.90568855]
[1728589420458,0.001815,59678.0,59677.0,1.00479338]
[1728589420702,0.001815,59678.0,59677.0,1.00279338]
[1728589420926,0.001815,59678.0,59677.0,0.90368855]
[1728589421186,0.001815,59678.0,59677.0,1.00284516]
[1728589421427,0.001815,59678.0,59677.0,0.90568855]
[1728589421929,1e-06,59678.0,59677.0,0.90568855]
[1728589422161,1e-06,59693.0,59692.0,0.167526]
[1728589422397,1e-06,59693.0,59692.0,0.36203025]
[1728589423307,1e-06,59693.0,59692.0,0.36940025]
[1728589423513,1e-06,59693.0,59692.0,0.42297042]
[1728589423764,1e-06,59693.0,59692.0,0.37340025]
[1728589424222,1e-06,59693.0,59692.0,0.36940025]
[1728589424663,1e-06,59693.0,59692.0,0.37940025]
[1728589425641,1e-06,59693.0,59692.0,0.37540025]
[1728589425862,1e-06,59693.0,59692.0,0.43397626]
[1728589426518,1e-06,59693.0,59692.0,0.23947201]
[1728589426755,1e-06,59693.0,59692.0,0.43397626]
[1728589426978,1e-06,59693.0,59692.0,0.45849936]
[1728589427201,1e-06,59693.0,59692.0,0.40892335]
[1728589427461,1e-06,59693.0,59692.0,0.4832617]
[1728589427709,1e-06,59693.0,59692.0,0.45847605]
[1728589427944,1e-06,59693.0,59692.0,0.40892335]
[1728589428161,1e-06,59693.0,59692.0,0.2144191]
[1728589428397,1e-06,59693.0,59692.0,0.4832617]
[1728589428615,1e-06,59693.0,59692.0,0.40892335]
[1728589429544,1e-06,59693.0,59692.0,0.45847023]
[1728589431353,1e-06,59693.0,59692.0,0.48322894]
[1728589432664,1e-06,59693.0,59692.0,0.55025394]
[1728589433399,1e-06,59693.0,59692.0,0.5254946]
[1728589434486,1e-06,59693.0,59692.0,0.51551738]
[1728589434705,1e-06,59693.0,59692.0,0.52951738]
[1728589434922,1e-06,59693.0,59692.0,0.51551738]
[1728589435139,1e-06,59693.0,59692.0,0.52951738]
[1728589435360,1e-06,59693.0,59692.0,0.52051738]
[1728589435611,1e-06,59693.0,59692.0,0.48394835]
[1728589436048,1e-06,59693.0,59692.0,0.47094835]
[1728589436477,1e-06,59693.0,59692.0,0.41683339]
[1728589437396,1e-06,59693.0,59692.0,0.46642412]
[1728589437635,1e-06,59693.0,59692.0,0.41683339]
[1728589438072,1e-06,59693.0,59692.0,0.61862147]
[1728589438326,1e-06,59693.0,59692.0,0.81353198]
[1728589439479,1e-06,59693.0,59692.0,0.91475432]
[1728589439696,1e-06,59693.0,59692.0,0.81553198]
[1728589439912,1e-06,59693.0,59692.0,0.93955991]
[1728589440587,1e-06,59693.0,59692.0,0.86737195]
[1728589440851,1e-06,59693.0,59692.0,0.75482167]
[1728589441078,1e-06,59693.0,59692.0,0.80666391]
[1728589441530,1e-06,59693.0,59692.0,0.72782167]
[1728589441761,1e-06,59693.0,59692.0,0.74182167]
[1728589441990,1e-06,59693.0,59692.0,0.75582167]
[1728589442203,1e-06,59693.0,59692.0,0.72782167]
[1728589442460,1e-06,59693.0,59692.0,0.75582167]
[1728589442706,0.000814,59708.0,59707.0,0.167484]
[1728589443913,0.000814,59708.0,59707.0,0.26683537]
[1728589444154,0.000814,59708.0,59707.0,0.29165928]
[1728589444398,0.000814,59708.0,59707.0,0.26683503]
[1728589444632,0.000814,59708.0,59707.0,0.29168941]
[1728589444847,0.000814,59708.0,59707.0,0.27385921]
[1728589445548,0.000814,59708.0,59707.0,0.174484]
[1728589445779,0.000814,59708.0,59707.0,0.167484]
[1728589446011,0.000814,59708.0,59707.0,0.180484]
[1728589446223,0.000814,59708.0,59707.0,0.29388397]
[1728589446441,0.000814,59708.0,59707.0,0.29175077]
[1728589446663,0.000814,59708.0,59707.0,0.30175077]
[1728589447585,0.000814,59708.0,59707.0,0.177484]
[1728589448570,0.000814,59708.0,59707.0,0.188484]
[1728589449485,0.000814,59708.0,59707.0,0.30275595]
[1728589449720,0.000814,59708.0,59707.0,0.31475595]
[1728589449917,0.07274788,59714.0,59707.0,0.14727195]
[1728589450177,0.07274788,59714.0,59713.0,0.36153527]
[1728589452650,0.07274788,59714.0,59713.0,0.37153527]
[1728589454634,0.07274788,59714.0,59713.0,0.36653527]
[1728589454869,0.07274788,59714.0,59713.0,0.37153527]
[1728589455105,0.07274788,59714.0,59713.0,0.36153527]
[1728589455330,0.07274788,59714.0,59713.0,0.36653527]
[1728589455783,0.07356188,59714.0,59713.0,0.36153527]
[1728589456033,0.07356188,59714.0,59713.0,0.36553527]
[1728589456375,0.07356188,59714.0,59713.0,0.36453527]
[1728589456612,0.07356188,59714.0,59713.0,0.36553527]
[1728589456844,0.07356188,59714.0,59713.0,0.36953527]
[1728589457519,0.07356188,59714.0,59713.0,0.175467]
[1728589457757,0.07356188,59714.0,59713.0,0.171467]
[1728589458007,0.07356188,59714.0,59713.0,0.004]
[1728589458256,0.34187118,59714.0,59713.0,0.008]
[1728589458734,0.53233518,59714.0,59713.0,0.008]
[1728589458970,0.53396518,59714.0,59713.0,0.008]
[1728589459670,0.53396518,59714.0,59713.0,0.004]
[1728589460827,0.00163,59710.0,59707.0,0.25231923]
[1728589461061,0.3513093,59709.0,59707.0,0.25231923]
[1728589461765,0.3513093,59709.0,59704.0,0.167491]
[1728589462271,0.099,59708.0,59707.0,0.003]
[1728589462513,0.3513093,59708.0,59707.0,0.003]
[1728589463989,0.3513093,59708.0,59704.0,0.173492]
[1728589464206,0.1693093,59707.0,59705.0,0.41980823]
[1728589464439,0.1693093,59707.0,59705.0,0.167489]
[1728589466711,0.1693093,59707.0,59704.0,0.167492]
[1728589467850,0.1693093,59707.0,59704.0,0.001628]
[1728589468065,0.099,59706.0,59704.0,0.001628]
[1728589468279,0.2523093,59705.0,59704.0,0.001628]
[1728589469068,0.5434293,59705.0,59704.0,0.001628]
[1728589471263,0.5434293,59705.0,59704.0,0.002628]
[1728589471523,0.5434293,59705.0,59704.0,0.001628]
[1728589471743,0.5434293,59705.0,59704.0,0.003628]
[1728589472445,0.3759393,59705.0,59704.0,0.003628]
[1728589472667,0.3513093,59705.0,59704.0,0.1882329]
[1728589473549,0.3513093,59705.0,59704.0,0.17112]
[1728589473785,0.3513093,59705.0,59704.0,0.16912]
[1728589474255,0.3513093,59705.0,59704.0,0.17312]
[1728589474477,0.3513093,59705.0,59704.0,0.16912]
[1728589479885,0.2683093,59705.0,59704.0,0.16912]
[1728589480099,0.1693093,59705.0,59704.0,0.16912]
[1728589480782,0.1763,59709.0,59708.0,0.167481]
[1728589481013,0.3456093,59709.0,59708.0,0.167481]
[1728589482159,0.3456093,59709.0,59706.0,0.167485]
[1728589482373,0.1693093,59708.0,59706.0,0.167485]
[1728589482598,0.1693093,59708.0,59705.0,0.167488]
[1728589483296,0.1693093,59708.0,59706.0,0.167486]
[1728589486040,0.1693093,59708.0,59704.0,0.336611]
[1728589486041,0.1693093,59708.0,59704.0,0.001628]
[1728589486305,0.1693093,59708.0,59707.0,0.167484]
[1728589487898,0.1693093,59708.0,59704.0,0.336613]
[1728589488123,0.1693093,59708.0,59707.0,0.004]
[1728589488585,0.1693093,59708.0,59707.0,0.0528102]
[1728589488810,0.1693093,59708.0,59707.0,0.0538102]
[1728589489035,0.1693093,59708.0,59707.0,0.2212942]
[1728589489750,0.1693093,59708.0,59707.0,0.2192942]
[1728589489969,0.1693093,59708.0,59707.0,0.2182942]
[1728589490185,0.1693093,59708.0,59707.0,0.2192942]
[1728589490412,0.1693093,59708.0,59707.0,0.2182942]
[1728589492265,0.1693093,59708.0,59707.0,0.0508102]
[1728589493160,0.1693093,59708.0,59707.0,0.0528102]
[1728589493399,0.1693093,59708.0,59707.0,0.0518102]
[1728589493611,0.1693093,59708.0,59707.0,0.0508102]
[1728589495145,0.1693093,59708.0,59706.0,0.001628]
[1728589496718,0.094,59707.0,59706.0,0.001628]
[1728589496946,0.2633093,59707.0,59706.0,0.002628]
[1728589497169,0.2633093,59707.0,59706.0,0.003628]
[1728589497624,0.2633093,59707.0,59706.0,0.001628]
[1728589498114,0.2633093,59707.0,59706.0,0.003628]
[1728589499255,0.2633093,59707.0,59706.0,0.002628]
[1728589499493,0.2633093,59707.0,59706.0,0.003628]
[1728589499720,0.2633093,59707.0,59706.0,0.002628]
[1728589502536,0.2633093,59707.0,59706.0,0.170115]
[1728589502754,0.1693093,59707.0,59706.0,0.170115]
[1728589502980,0.0795,59713.0,59709.0,0.334955]
[1728589503221,0.094714,59714.0,59712.0,0.44652556]
[1728589503222,0.000814,59714.0,59712.0,0.44652556]
[1728589503444,0.000814,59714.0,59713.0,0.29196919]
[1728589503685,0.000814,59714.0,59713.0,0.167467]
[1728589503934,0.000814,59714.0,59713.0,0.26699394]
[1728589504155,0.000814,59714.0,59713.0,0.24212062]
[1728589504397,0.000814,59714.0,59713.0,0.21723373]
[1728589504624,0.000814,59714.0,59713.0,0.26699394]
[1728589504851,0.000814,59714.0,59713.0,0.27299394]
[1728589505062,0.000814,59714.0,59713.0,0.24810941]
[1728589505314,0.000814,59714.0,59713.0,0.173467]
[1728589505548,0.1701233,59714.0,59713.0,0.08064241]
[1728589505810,0.1701233,59714.0,59713.0,0.006]
[1728589506075,0.1701233,59714.0,59713.0,0.004]
[1728589506531,0.1701233,59714.0,59712.0,0.04975437]
[1728589506757,0.1701233,59714.0,59712.0,0.21722437]
[1728589506989,0.1701233,59714.0,59712.0,0.21722337]
[1728589507410,0.1701233,59714.0,59713.0,0.167467]
[1728589508655,0.1701233,59714.0,59713.0,0.2420807]
[1728589508886,0.1701233,59714.0,59713.0,0.167467]
[1728589509112,0.1701233,59714.0,59713.0,0.21721186]
[1728589510312,0.1701233,59714.0,59713.0,0.167467]
[1728589511209,0.1701233,59714.0,59713.0,0.168467]
[1728589511682,0.2532233,59714.0,59713.0,0.001]
[1728589511906,0.2762233,59714.0,59713.0,0.001]
[1728589512126,0.3693233,59714.0,59713.0,0.001]
[1728589512586,0.3693233,59714.0,59713.0,0.002]
[1728589516665,0.3693233,59714.0,59713.0,0.001]
[1728589517597,0.023,59713.0,59710.0,0.167475]
[1728589517838,0.1693093,59712.0,59710.0,0.167475]
[1728589518065,0.023,59711.0,59710.0,0.167475]
[1728589518299,0.1693093,59711.0,59708.0,0.25231923]
[1728589518520,0.1693093,59710.0,59708.0,0.41979923]
[1728589518740,0.1693093,59710.0,59709.0,0.167478]
[1728589519870,0.1693093,59710.0,59706.0,0.336601]
[1728589520098,0.1693093,59710.0,59709.0,0.170478]
[1728589520788,0.1693093,59710.0,59709.0,0.003]
[1728589521519,0.1693093,59710.0,59707.0,0.167483]
[1728589521729,0.1693093,59710.0,59706.0,0.336602]
[1728589521730,0.1693093,59710.0,59709.0,0.002]
[1728589523765,0.1693093,59710.0,59708.0,0.16748]
[1728589524900,0.1693093,59710.0,59707.0,0.001]
[1728589525120,0.1693093,59710.0,59707.0,0.167483]
[1728589525850,0.1693093,59710.0,59707.0,0.167484]
[1728589526074,0.1693093,59710.0,59706.0,0.169114]
[1728589526301,0.1693093,59710.0,59706.0,0.001628]
[1728589526302,0.5139233,59707.0,59706.0,0.001628]
[1728589526549,0.5369233,59707.0,59706.0,0.001628]
[1728589527992,0.9369233,59707.0,59706.0,0.001628]
[1728589528679,0.9379233,59707.0,59706.0,0.002628]
[1728589528909,0.9379233,59707.0,59706.0,0.003628]
[1728589530422,1.10936045,59707.0,59706.0,0.003628]
[1728589530894,1.30356678,59707.0,59706.0,0.003628]
[1728589531131,1.30256678,59707.0,59706.0,0.002628]
[1728589531591,1.40356678,59707.0,59706.0,0.002628]
[1728589531816,1.40456678,59707.0,59706.0,0.002628]
[1728589532059,1.40356678,59707.0,59706.0,0.001628]
[1728589532293,1.40456678,59707.0,59706.0,0.001628]
[1728589533254,1.40356678,59707.0,59706.0,0.001628]
[1728589533468,0.00362445,59705.0,59704.0,0.001628]
[1728589533706,0.80540503,59705.0,59704.0,0.001628]
[1728589533949,0.99961136,59705.0,59704.0,0.001628]
[1728589535083,1.39961136,59705.0,59704.0,0.005628]
[1728589536050,1.39961136,59705.0,59693.0,0.25231923]
[1728589536051,0.369551,59694.0,59693.0,0.25231923]
[1728589536268,0.83722698,59694.0,59693.0,0.25231923]
[1728589536503,0.83922143,59694.0,59693.0,0.25231923]
[1728589536741,0.19414745,59693.0,59685.0,0.25231923]
[1728589536969,0.36345675,59693.0,59685.0,0.25231923]
[1728589537659,0.2758393,59693.0,59688.0,0.167537]
[1728589538319,0.2838393,59693.0,59692.0,0.002628]
[1728589538537,0.2918393,59693.0,59692.0,0.003628]
[1728589538758,0.1853093,59693.0,59692.0,0.003628]
[1728589539008,0.1853093,59693.0,59692.0,0.171154]
[1728589539210,0.1853093,59693.0,59692.0,0.003628]
[1728589539920,0.1853093,59693.0,59692.0,0.002628]
[1728589539921,0.5773093,59693.0,59692.0,0.002628]
[1728589540128,0.5993093,59693.0,59692.0,0.002628]
[1728589540601,0.6053093,59693.0,59692.0,0.002628]
[1728589541030,0.1993093,59693.0,59692.0,0.002628]
[1728589541310,0.2053093,59693.0,59692.0,0.002628]
[1728589542719,0.25950663,59693.0,59692.0,0.002628]
[1728589543429,0.2053093,59693.0,59692.0,0.002628]
[1728589544840,0.1823093,59693.0,59692.0,0.170154]
[1728589545544,0.013,59693.0,59692.0,0.170154]
[1728589546021,0.006,59693.0,59692.0,0.169154]
[1728589546480,0.00163,59703.0,59700.0,0.167503]
[1728589546709,0.1693093,59702.0,59700.0,0.167503]
[1728589547167,0.023,59701.0,59699.0,0.167505]
[1728589547427,0.1693093,59700.0,59699.0,0.167505]
[1728589548774,0.1693093,59700.0,59692.0,0.001628]
[1728589548775,0.1693093,59700.0,59695.0,0.167517]
[1728589548993,0.1693093,59700.0,59698.0,0.167508]
[1728589549249,0.1693093,59700.0,59697.0,0.25231923]
[1728589549469,0.4,59703.0,59702.0,0.167498]
[1728589549921,0.247363,59715.0,59704.0,0.33498]
[1728589550149,0.1693093,59713.0,59702.0,0.334995]
[1728589550376,0.1693093,59713.0,59712.0,0.16747]
[1728589551510,0.1703093,59713.0,59712.0,0.16747]
[1728589552653,0.1713093,59713.0,59712.0,0.16747]
[1728589552884,0.1703093,59713.0,59712.0,0.16747]
[1728589553094,0.1723093,59713.0,59712.0,0.16747]
[1728589553765,0.1723093,59713.0,59709.0,0.417755]
[1728589553766,0.1763093,59713.0,59710.0,0.167475]
[1728589553995,0.1763093,59713.0,59712.0,0.16747]
[1728589555139,0.1763093,59713.0,59711.0,0.16747]
[1728589555842,0.1733093,59713.0,59711.0,0.16747]
[1728589556068,0.37223433,59713.0,59706.0,0.167485]
[1728589556316,0.3377773,59713.0,59708.0,0.16748]
[1728589556552,0.1723093,59713.0,59709.0,0.167477]
[1728589556771,0.1723093,59713.0,59707.0,0.50245]
[1728589557039,0.1743093,59713.0,59712.0,0.41978923]
[1728589557252,0.1713093,59713.0,59712.0,0.16747]
[1728589557465,0.1693093,59713.0,59712.0,0.16747]
[1728589559312,0.1723093,59713.0,59712.0,0.16747]
[1728589559561,0.1763093,59713.0,59712.0,0.16747]
[1728589560233,0.1723093,59713.0,59712.0,0.16747]
[1728589560419,0.1693093,59713.0,59712.0,0.16747]
[1728589560652,0.1703093,59713.0,59712.0,0.16747]
[1728589561104,0.1713093,59713.0,59712.0,0.16747]
[1728589561351,0.002,59713.0,59712.0,0.16747]
[1728589561852,0.001,59713.0,59712.0,0.16747]
[1728589562294,0.002,59713.0,59712.0,0.16747]
[1728589562539,0.000815,59713.0,59712.0,0.16747]
[1728589562976,0.002815,59713.0,59712.0,0.17547]
[1728589563465,0.000815,59713.0,59712.0,0.16747]
[1728589563686,0.000815,59713.0,59712.0,0.24447]
[1728589563901,0.001815,59713.0,59712.0,0.263819]
[1728589564163,0.002815,59713.0,59712.0,0.263819]
[1728589565063,0.002815,59713.0,59712.0,0.26047]
[1728589568454,0.002815,59713.0,59712.0,0.18347]
[1728589568697,0.002815,59713.0,59712.0,0.016]
[1728589568698,0.3395913,59713.0,59712.0,0.016]
[1728589568943,0.5398213,59713.0,59712.0,0.016]